fUSD/lending_fUSD_20240918
["ID","MTS","AMOUNT","RATE_DAILY","PERIOD"]
[338490691,1726701047722,-500.0,0.0001452,2]
[338490692,1726701047732,-7662.07,0.0001452,2]
[338490693,1726701047742,-1312.33,0.0001452,2]
[338490694,1726701047751,-500.0,0.0001452,2]
[338490695,1726701047762,-532.43,0.0001452,2]
[338490696,1726701047771,-3757.02,0.0001452,2]
[338490697,1726701047781,-637.71,0.0001452,2]
[338490698,1726701047793,-1341.7,0.0001452,2]
[338490699,1726701047803,-500.0,0.0001452,2]
[338490700,1726701047812,-500.0,0.0001452,2]
[338490701,1726701047822,-500.0,0.0001452,2]
[338490702,1726701047831,-4043.67,0.0001452,2]
[338490703,1726701047842,-657.51,0.0001452,2]
[338490704,1726701047852,-500.0,0.0001452,2]
[338490705,1726701047861,-500.0,0.0001452,2]
[338490706,1726701047871,-702.28,0.0001452,2]
[338490707,1726701047880,-4206.2,0.0001452,2]
[338490708,1726701047890,-500.0,0.0001452,2]
[338490709,1726701047899,-538.43,0.0001452,2]
[338490710,1726701047909,-1612.45,0.0001452,2]
[338490711,1726701047918,-500.0,0.0001452,2]
[338490712,1726701047928,-1524.85,0.0001452,2]
[338490713,1726701047938,-500.0,0.0001452,2]
[338490714,1726701047947,-1074.85,0.0001452,2]
[338490715,1726701047957,-500.0,0.0001452,2]
[338490716,1726701047967,-1079.61,0.0001452,2]
[338490717,1726701047976,-803.81,0.0001452,2]
[338490718,1726701047986,-502.55900024,0.0001452,2]
[338490719,1726701047995,-645.68,0.0001452,2]
[338490720,1726701048005,-500.0,0.0001452,2]
[338490721,1726701048014,-630.24,0.0001452,2]
[338490722,1726701048024,-500.0,0.0001452,2]
[338490723,1726701048033,-5546.18,0.0001452,2]
[338490724,1726701048043,-662.11,0.0001452,2]
[338490725,1726701048053,-500.0,0.0001452,2]
[338490726,1726701048063,-500.0,0.0001452,2]
[338490727,1726701048073,-500.0,0.0001452,2]
[338490728,1726701048084,-1460.37,0.0001452,2]
[338490729,1726701048093,-1356.7,0.0001452,2]
[338490730,1726701048103,-582.98,0.0001452,2]
[338490731,1726701048113,-500.0,0.0001452,2]
[338490732,1726701048123,-151.0,0.0001452,2]
[338490733,1726701048133,-151.0,0.0001452,2]
[338490734,1726701048143,-500.0,0.0001452,2]
[338490735,1726701048153,-500.0,0.0001452,2]
[338490736,1726701048163,-532.98,0.0001452,2]
[338490737,1726701048173,-500.0,0.0001452,2]
[338490738,1726701048182,-3327.18,0.0001452,2]
[338490739,1726701048193,-824.44,0.0001452,2]
[338490740,1726701048203,-1216.66,0.0001452,2]
[338490741,1726701048213,-500.0,0.0001452,2]
[338490742,1726701048223,-500.0,0.0001452,2]
[338490743,1726701048234,-151.0,0.0001452,2]
[338490744,1726701048246,-518.81,0.0001452,2]
[338490745,1726701048256,-3091.25,0.0001452,2]
[338490746,1726701048266,-151.0,0.0001452,2]
[338490747,1726701048277,-2609.29,0.0001452,2]
[338490748,1726701048289,-1851.47,0.0001452,2]
[338490749,1726701048299,-4926.6,0.0001452,2]
[338490750,1726701048310,-500.0,0.0001452,2]
[338490751,1726701048327,-762.16,0.0001452,2]
[338490752,1726701048336,-500.0,0.0001452,2]
[338490753,1726701048347,-905.09,0.0001452,2]
[338490754,1726701048357,-151.0,0.0001452,2]
[338490755,1726701048367,-4126.61,0.0001452,2]
[338490756,1726701048377,-500.0,0.0001452,2]
[338490757,1726701048387,-500.0,0.0001452,2]
[338490758,1726701048397,-648.69,0.0001452,2]
[338490759,1726701048408,-500.0,0.0001452,2]
[338490760,1726701048417,-500.0,0.0001452,2]
[338490761,1726701048427,-151.0,0.0001452,2]
[338490762,1726701048437,-151.0,0.0001452,2]
[338490763,1726701048447,-500.0,0.0001452,2]
[338490764,1726701048457,-3153.62,0.0001452,2]
[338490765,1726701048467,-856.1,0.0001452,2]
[338490766,1726701048476,-1807.41,0.0001452,2]
[338490767,1726701048486,-1751.47,0.0001452,2]
[338490768,1726701048495,-3469.32,0.0001452,2]
[338490769,1726701048505,-151.0,0.0001452,2]
[338490770,1726701048514,-151.0,0.0001452,2]
[338490771,1726701048524,-151.0,0.0001452,2]
[338490772,1726701048533,-500.0,0.0001452,2]
[338490773,1726701048548,-151.0,0.0001452,2]
[338490774,1726701048558,-500.0,0.0001452,2]
[338490775,1726701048567,-5626.9,0.0001452,2]
[338490776,1726701048577,-1588.2,0.0001452,2]
[338490777,1726701048586,-558.15,0.0001452,2]
[338490778,1726701048596,-974.7,0.0001452,2]
[338490779,1726701048605,-1408.19,0.0001452,2]
[338490780,1726701048615,-500.0,0.0001452,2]
[338490781,1726701048624,-1246.24,0.0001452,2]
[338490782,1726701048633,-529.44,0.0001452,2]
[338490783,1726701048643,-500.0,0.0001452,2]
[338490784,1726701048652,-500.0,0.0001452,2]
[338490785,1726701048661,-399.65761831,0.0001452,2]
[338490786,1726701048671,-2940.5,0.0001452,2]
[338490787,1726701048681,-500.0,0.0001452,2]
[338490788,1726701048690,-572.15,0.0001452,2]
[338490789,1726701048699,-1408.22,0.0001452,2]
[338490790,1726701048708,-500.0,0.0001452,2]
[338490791,1726701048717,-1785.43,0.0001452,2]
[338490792,1726701048727,-500.0,0.0001452,2]
[338490793,1726701048736,-908.28,0.0001452,2]
[338490794,1726701048746,-6390.13,0.0001452,2]
[338490795,1726701048756,-500.0,0.0001452,2]
[338490796,1726701048765,-500.0,0.0001452,2]
[338490797,1726701048775,-1218.78,0.0001452,2]
[338490798,1726701048784,-958.29,0.0001452,2]
[338490799,1726701048798,-1933.85,0.0001452,2]
[338490800,1726701048808,-3992.23,0.0001452,2]
[338490801,1726701048817,-500.0,0.0001452,2]
[338490802,1726701048827,-500.0,0.0001452,2]
[338490803,1726701048836,-500.0,0.0001452,2]
[338490804,1726701048846,-2571.74,0.0001452,2]
[338490805,1726701048856,-3004.22,0.0001452,2]
[338490806,1726701048865,-500.0,0.0001452,2]
[338490807,1726701048875,-1257.68,0.0001452,2]
[338490808,1726701048884,-606.01,0.0001452,30]
[338490809,1726701048893,-1567.71,0.0001452,2]
[338490810,1726701048903,-500.0,0.0001452,2]
[338490811,1726701048912,-3938.5,0.0001452,2]
[338490812,1726701048921,-2177.56,0.0001452,2]
[338490813,1726701048931,-1665.24,0.0001452,2]
[338490814,1726701048941,-500.0,0.0001452,2]
[338490815,1726701048950,-500.0,0.0001452,2]
[338490816,1726701048959,-151.0,0.0001452,2]
[338490817,1726701048969,-1080.27,0.0001452,2]
[338490818,1726701048979,-500.0,0.0001452,2]
[338490819,1726701048988,-2769.24,0.0001452,2]
[338490820,1726701048997,-151.0,0.0001452,2]
[338490821,1726701049007,-500.0,0.0001452,2]
[338490822,1726701049016,-3932.75,0.0001452,2]
[338490823,1726701049026,-500.0,0.0001452,2]
[338490824,1726701049035,-500.0,0.0001452,2]
[338490825,1726701049048,-500.0,0.0001452,2]
[338490826,1726701049057,-1548.94,0.0001452,2]
[338490827,1726701049067,-4542.49,0.0001452,2]
[338490828,1726701049076,-571.45,0.0001452,2]
[338490829,1726701049085,-2290.01,0.0001452,2]
[338490830,1726701049095,-1958.83,0.0001452,2]
[338490831,1726701049104,-547.85102394,0.0001452,2]
[338490832,1726701049114,-500.0,0.0001452,2]
[338490833,1726701049123,-1298.73,0.0001452,2]
[338490834,1726701049132,-798.79,0.0001452,2]
[338490835,1726701049142,-3818.46,0.0001452,2]
[338490836,1726701049151,-500.0,0.0001452,2]
[338490837,1726701049161,-500.0,0.0001452,2]
[338490838,1726701049171,-500.0,0.0001452,2]
[338490839,1726701049180,-151.0,0.0001452,2]
[338490840,1726701049189,-151.0,0.0001452,2]
[338490841,1726701049199,-1029.7,0.0001452,2]
[338490842,1726701049208,-500.0,0.0001452,2]
[338490843,1726701049218,-500.0,0.0001452,2]
[338490844,1726701049228,-500.0,0.0001452,2]
[338490845,1726701049237,-1953.82,0.0001452,2]
[338490846,1726701049247,-500.0,0.0001452,2]
[338490847,1726701049257,-1381.46,0.0001452,2]
[338490848,1726701049267,-500.0,0.0001452,2]
[338490849,1726701049276,-878.3,0.0001452,2]
[338490850,1726701049286,-500.0,0.0001452,2]
[338490851,1726701049299,-2284.09,0.0001452,2]
[338490852,1726701049308,-748.56,0.0001452,2]
[338490853,1726701049320,-2394.44,0.0001452,2]
[338490854,1726701049329,-500.0,0.0001452,2]
[338490855,1726701049339,-500.0,0.0001452,2]
[338490856,1726701049349,-532.93,0.0001452,2]
[338490857,1726701049359,-500.0,0.0001452,2]
[338490858,1726701049368,-632.51,0.0001452,2]
[338490859,1726701049378,-500.0,0.0001452,2]
[338490860,1726701049488,-500.0,0.0001452,2]
[338490861,1726701049497,-500.0,0.0001452,2]
[338490862,1726701049506,-673.07,0.0001452,2]
[338490863,1726701049515,-1897.53,0.0001452,2]
[338490864,1726701049524,-500.0,0.0001452,2]
[338490865,1726701049533,-500.0,0.0001452,2]
[338490866,1726701049544,-616.28,0.0001452,2]
[338490867,1726701049553,-500.0,0.0001452,2]
[338490868,1726701049562,-738.63,0.0001452,2]
[338490869,1726701049572,-1440.76,0.0001452,2]
[338490870,1726701049581,-724.39,0.0001452,2]
[338490871,1726701049591,-3682.09,0.0001452,2]
[338490872,1726701049600,-500.0,0.0001452,2]
[338490873,1726701049609,-1831.3,0.0001452,2]
[338490874,1726701049619,-758.2,0.0001452,2]
[338490875,1726701049628,-4790.07,0.0001452,2]
[338490876,1726701049638,-500.0,0.0001452,2]
[338490877,1726701049647,-500.0,0.0001452,2]
[338490878,1726701049658,-2652.98,0.0001452,2]
[338490879,1726701049667,-2378.38,0.0001452,2]
[338490880,1726701049676,-2000.26,0.0001452,2]
[338490881,1726701049686,-500.0,0.0001452,2]
[338490882,1726701049695,-500.0,0.0001452,2]
[338490883,1726701049704,-151.0,0.0001452,2]
[338490884,1726701049713,-151.0,0.0001452,2]
[338490885,1726701049723,-500.0,0.0001452,2]
[338490886,1726701049733,-500.0,0.0001452,2]
[338490887,1726701049743,-500.0,0.0001452,2]
[338490888,1726701049752,-500.0,0.0001452,2]
[338490889,1726701049762,-151.0,0.0001452,2]
[338490890,1726701049771,-151.0,0.0001452,2]
[338490891,1726701049780,-678.46,0.0001452,2]
[338490892,1726701049789,-500.0,0.0001452,2]
[338490893,1726701049808,-2366.47,0.0001452,2]
[338490894,1726701049818,-950.97,0.0001452,2]
[338490895,1726701049828,-500.0,0.0001452,2]
[338490896,1726701049837,-500.0,0.0001452,2]
[338490897,1726701049846,-2330.13,0.0001452,2]
[338490898,1726701049855,-876.71,0.0001452,2]
[338490899,1726701049864,-2000.08,0.0001452,2]
[338490900,1726701049873,-500.0,0.0001452,2]
[338490901,1726701049883,-532.79941507,0.0001452,2]
[338490902,1726701049892,-2073.15,0.0001452,2]
[338490903,1726701049901,-500.0,0.0001452,2]
[338490904,1726701049910,-500.0,0.0001452,2]
[338490905,1726701049920,-500.0,0.0001452,2]
[338490906,1726701049929,-500.0,0.0001452,2]
[338490907,1726701049939,-6256.89,0.0001452,2]
[338490908,1726701049950,-500.0,0.0001452,2]
[338490909,1726701049959,-500.0,0.0001452,2]
[338490910,1726701049970,-500.0,0.0001452,2]
[338490911,1726701049979,-500.0,0.0001452,2]
[338490912,1726701049989,-500.0,0.0001452,2]
[338490913,1726701049999,-500.0,0.0001452,2]
[338490914,1726701050008,-500.0,0.0001452,2]
[338490915,1726701050019,-500.0,0.0001452,2]
[338490916,1726701050027,-500.0,0.0001452,2]
[338490917,1726701050037,-500.0,0.0001452,2]
[338490918,1726701050051,-500.0,0.0001452,2]
[338490919,1726701050060,-500.0,0.0001452,2]
[338490920,1726701050070,-582.75,0.0001452,2]
[338490921,1726701050079,-500.0,0.0001452,2]
[338490922,1726701050089,-500.0,0.0001452,2]
[338490923,1726701050098,-500.0,0.0001452,2]
[338490924,1726701050107,-500.0,0.0001452,2]
[338490925,1726701050117,-500.0,0.0001452,2]
[338490926,1726701050126,-500.0,0.0001452,2]
[338490927,1726701050136,-500.0,0.0001452,2]
[338490928,1726701050147,-500.0,0.0001452,2]
[338490929,1726701050156,-500.0,0.0001452,2]
[338490930,1726701050165,-500.0,0.0001452,2]
[338490931,1726701050176,-500.0,0.0001452,2]
[338490932,1726701050188,-500.0,0.0001452,2]
[338490933,1726701050199,-500.0,0.0001452,2]
[338490934,1726701050208,-500.0,0.0001452,2]
[338490935,1726701050217,-500.0,0.0001452,2]
[338490936,1726701050226,-500.0,0.0001452,2]
[338490937,1726701050236,-500.0,0.0001452,2]
[338490938,1726701050245,-1511.39,0.0001452,2]
[338490939,1726701050255,-3021.16,0.0001452,2]
[338490940,1726701050266,-500.0,0.0001452,2]
[338490941,1726701050278,-826.74,0.0001452,2]
[338490942,1726701050289,-646.88506455,0.0001452,2]
[338490943,1726701050299,-586.88718666,0.0001452,2]
[338490944,1726701050308,-1183.9,0.0001452,2]
[338490945,1726701050319,-3881.26,0.0001452,2]
[338490946,1726701050329,-1923.47,0.0001452,2]
[338490947,1726701050341,-903.94,0.0001452,2]
[338490948,1726701050350,-669.3,0.0001452,2]
[338490949,1726701050362,-1466.63,0.0001452,2]
[338490950,1726701050371,-3375.76,0.0001452,2]
[338490951,1726701050380,-500.0,0.0001452,2]
[338490952,1726701050390,-643.03,0.0001452,2]
[338490953,1726701050402,-500.0,0.0001452,2]
[338490954,1726701050414,-500.0,0.0001452,2]
[338490955,1726701050425,-500.0,0.0001452,2]
[338490956,1726701050434,-257.889973,0.0001452,2]
[338490957,1726701050445,-257.889973,0.0001452,2]
[338490958,1726701050455,-1772.09,0.0001452,2]
[338490959,1726701050465,-500.0,0.0001452,2]
[338490960,1726701050474,-500.0,0.0001452,2]
[338490961,1726701050483,-909.39,0.0001452,2]
[338490962,1726701050492,-500.0,0.0001452,2]
[338490963,1726701050502,-500.0,0.0001452,2]
[338490964,1726701050511,-821.32,0.0001452,2]
[338490965,1726701050521,-1851.0,0.0001452,2]
[338490966,1726701050530,-8847.65205074,0.0001452,2]
[338490967,1726701050539,-500.0,0.0001452,2]
[338490968,1726701050548,-2582.2,0.0001452,2]
[338490969,1726701050557,-257.889973,0.0001452,2]
[338490970,1726701050567,-3227.46,0.0001452,2]
[338490971,1726701050577,-257.889973,0.0001452,2]
[338490972,1726701050587,-500.0,0.0001452,2]
[338490973,1726701050596,-151.0,0.0001452,2]
[338490974,1726701050605,-151.0,0.0001452,2]
[338490975,1726701050615,-500.0,0.0001452,2]
[338490976,1726701050624,-1854.46,0.0001452,2]
[338490977,1726701050633,-500.0,0.0001452,2]
[338490978,1726701050642,-895.98,0.0001452,2]
[338490979,1726701050651,-868.12,0.0001452,2]
[338490980,1726701050660,-3497.1,0.0001452,2]
[338490981,1726701050669,-500.0,0.0001452,2]
[338490982,1726701050678,-500.0,0.0001452,2]
[338490983,1726701050687,-500.0,0.0001452,2]
[338490984,1726701050696,-500.0,0.0001452,2]
[338490985,1726701050705,-500.0,0.0001452,2]
[338490986,1726701050714,-151.0,0.0001452,2]
[338490987,1726701050724,-151.0,0.0001452,2]
[338490988,1726701050733,-300.0,0.0001452,2]
[338490989,1726701050742,-517.98,0.0001452,2]
[338490990,1726701050752,-3902.22,0.0001452,2]
[338490991,1726701050762,-500.0,0.0001452,2]
[338490992,1726701050773,-500.0,0.0001452,2]
[338490993,1726701050782,-500.0,0.0001452,2]
[338490994,1726701050794,-512.92184983,0.0001452,2]
[338490995,1726701050803,-674.28,0.0001452,2]
[338490996,1726701050812,-3694.68,0.0001452,2]
[338490997,1726701050821,-259.645993,0.0001452,2]
[338490998,1726701050830,-3485.39,0.0001452,2]
[338490999,1726701050840,-500.0,0.0001452,2]
[338491000,1726701050851,-500.0,0.0001452,2]
[338491001,1726701050860,-500.0,0.0001452,2]
[338491002,1726701050869,-500.0,0.0001452,2]
[338491003,1726701050878,-985.57,0.0001452,2]
[338491004,1726701050888,-4151.61,0.0001452,2]
[338491005,1726701050899,-1883.26,0.0001452,2]
[338491006,1726701050909,-500.0,0.0001452,2]
[338491007,1726701050918,-500.0,0.0001452,2]
[338491008,1726701050928,-500.0,0.0001452,2]
[338491009,1726701050937,-1441.42,0.0001452,2]
[338491010,1726701050946,-3566.05,0.0001452,2]
[338491011,1726701050955,-151.0,0.0001452,2]
[338491012,1726701050964,-151.0,0.0001452,2]
[338491013,1726701050973,-944.83,0.0001452,2]
[338491014,1726701050982,-673.62,0.0001452,2]
[338491015,1726701050991,-592.71,0.0001452,2]
[338491016,1726701051001,-500.0,0.0001452,2]
[338491017,1726701051010,-3984.96,0.0001452,2]
[338491018,1726701051020,-500.0,0.0001452,2]
[338491019,1726701051029,-2916.82,0.0001452,2]
[338491020,1726701051038,-500.0,0.0001452,2]
[338491021,1726701051048,-500.0,0.0001452,2]
[338491022,1726701051058,-500.0,0.0001452,2]
[338491023,1726701051067,-1386.68,0.0001452,2]
[338491024,1726701051076,-500.0,0.0001452,2]
[338491025,1726701051085,-601.47,0.0001452,2]
[338491026,1726701051094,-2217.76,0.0001452,2]
[338491027,1726701051104,-500.0,0.0001452,2]
[338491028,1726701051113,-500.0,0.0001452,2]
[338491029,1726701051122,-665.57,0.0001452,2]
[338491030,1726701051132,-773.04,0.0001452,2]
[338491031,1726701051141,-1291.09,0.0001452,2]
[338491032,1726701051151,-946.77,0.0001452,2]
[338491033,1726701051160,-7758.51,0.0001452,2]
[338491034,1726701051170,-500.0,0.0001452,2]
[338491035,1726701051181,-1091.74,0.0001452,2]
[338491036,1726701051191,-2198.91,0.0001452,2]
[338491037,1726701051200,-500.0,0.0001452,2]
[338491038,1726701051210,-1862.22,0.0001452,2]
[338491039,1726701051219,-750.44,0.0001452,2]
[338491040,1726701051230,-500.0,0.0001452,2]
[338491041,1726701051239,-1108.0,0.0001452,2]
[338491042,1726701051249,-500.0,0.0001452,2]
[338491043,1726701051259,-500.0,0.0001452,2]
[338491044,1726701051269,-500.0,0.0001452,2]
[338491045,1726701051278,-500.0,0.0001452,2]
[338491046,1726701051287,-500.0,0.0001452,2]
[338491047,1726701051298,-1575.39,0.0001452,2]
[338491048,1726701051308,-556.85,0.0001452,2]
[338491049,1726701051319,-500.0,0.0001452,2]
[338491050,1726701051329,-500.0,0.0001452,2]
[338491051,1726701051340,-500.0,0.0001452,2]
[338491052,1726701051349,-500.0,0.0001452,2]
[338491053,1726701051359,-500.0,0.0001452,2]
[338491054,1726701051368,-500.0,0.0001452,2]
[338491055,1726701051378,-2843.04,0.0001452,2]
[338491056,1726701051387,-500.0,0.0001452,2]
[338491057,1726701051399,-928.18,0.0001452,2]
[338491058,1726701051408,-500.0,0.0001452,2]
[338491059,1726701051417,-913.19,0.0001452,2]
[338491060,1726701051427,-502.60337139,0.0001452,2]
[338491061,1726701051437,-500.0,0.0001452,2]
[338491062,1726701051446,-3303.44,0.0001452,2]
[338491063,1726701051457,-500.0,0.0001452,2]
[338491064,1726701051467,-500.0,0.0001452,2]
[338491065,1726701051478,-500.0,0.0001452,2]
[338491066,1726701051489,-584.94,0.0001452,2]
[338491067,1726701051499,-1284.85,0.0001452,2]
[338491068,1726701051508,-5049.37,0.0001452,2]
[338491069,1726701051518,-1368.49,0.0001452,2]
[338491070,1726701051528,-500.0,0.0001452,2]
[338491071,1726701051537,-500.0,0.0001452,2]
[338491072,1726701051549,-756.34,0.0001452,2]
[338491073,1726701051558,-500.0,0.0001452,2]
[338491074,1726701051568,-2696.12,0.0001452,2]
[338491075,1726701051578,-500.0,0.0001452,2]
[338491076,1726701051588,-500.0,0.0001452,2]
[338491077,1726701051597,-2068.77,0.0001452,2]
[338491078,1726701051606,-556.25,0.0001452,2]
[338491079,1726701051616,-1540.07,0.0001452,2]
[338491080,1726701051625,-500.0,0.0001452,2]
[338491081,1726701051635,-500.0,0.0001452,2]
[338491082,1726701051644,-500.0,0.0001452,2]
[338491083,1726701051653,-500.0,0.0001452,2]
[338491084,1726701051662,-4771.91,0.0001452,2]
[338491085,1726701051672,-500.0,0.0001452,2]
[338491086,1726701051682,-1643.07,0.0001452,2]
[338491087,1726701051693,-156.244954,0.0001452,2]
[338491088,1726701051704,-771.45,0.0001452,2]
[338491089,1726701051713,-156.244954,0.0001452,2]
[338491090,1726701051722,-500.0,0.0001452,2]
[338491091,1726701051731,-2044.38,0.0001452,2]
[338491092,1726701051742,-500.0,0.0001452,2]
[338491093,1726701051752,-500.0,0.0001452,2]
[338491094,1726701051761,-533.6,0.0001452,2]
[338491095,1726701051772,-6282.44,0.0001452,2]
[338491096,1726701051782,-500.0,0.0001452,2]
[338491097,1726701051793,-500.0,0.0001452,2]
[338491098,1726701051802,-500.0,0.0001452,2]
[338491099,1726701051812,-500.0,0.0001452,2]
[338491100,1726701051822,-500.0,0.0001452,2]
[338491101,1726701051834,-500.0,0.0001452,2]
[338491102,1726701051844,-500.0,0.0001452,2]
[338491103,1726701051854,-500.0,0.0001452,2]
[338491104,1726701051865,-500.0,0.0001452,2]
[338491105,1726701051876,-156.244954,0.0001452,2]
[338491106,1726701051886,-500.0,0.0001452,2]
[338491107,1726701051896,-500.0,0.0001452,2]
[338491108,1726701051906,-156.244954,0.0001452,2]
[338491109,1726701051915,-500.0,0.0001452,2]
[338491110,1726701051925,-924.75,0.0001452,2]
[338491111,1726701051936,-500.0,0.0001452,2]
[338491112,1726701051945,-500.0,0.0001452,2]
[338491113,1726701051955,-2428.3,0.0001452,2]
[338491114,1726701051964,-400.86252777,0.0001452,2]
[338491115,1726701051974,-2437.81,0.0001452,2]
[338491116,1726701051984,-151.0,0.0001452,2]
[338491117,1726701051993,-151.0,0.0001452,2]
[338491118,1726701052003,-537.2,0.0001452,2]
[338491119,1726701052013,-6468.75,0.0001452,2]
[338491120,1726701052022,-500.0,0.0001452,2]
[338491121,1726701052032,-508.58743629,0.0001452,2]
[338491122,1726701052041,-4316.77,0.0001452,2]
[338491123,1726701052061,-151.0,0.0001452,2]
[338491124,1726701052071,-1214.58,0.0001452,2]
[338491125,1726701052080,-151.0,0.0001452,2]
[338491126,1726701052089,-151.0,0.0001452,2]
[338491127,1726701052099,-870.3,0.0001452,2]
[338491128,1726701052108,-151.0,0.0001452,2]
[338491129,1726701052118,-363.57854022,0.0001452,2]
[338491130,1726701052128,-4681.47,0.0001452,2]
[338491131,1726701052137,-568.16,0.0001452,2]
[338491132,1726701052147,-870.3,0.0001452,2]
[338491133,1726701052157,-500.0,0.0001452,2]
[338491134,1726701052167,-870.3,0.0001452,2]
[338491135,1726701052177,-1841.14,0.0001452,2]
[338491136,1726701052187,-870.3,0.0001452,2]
[338491137,1726701052197,-870.3,0.0001452,2]
[338491138,1726701052207,-870.3,0.0001452,2]
[338491139,1726701052217,-500.0,0.0001452,2]
[338491140,1726701052227,-870.3,0.0001452,2]
[338491141,1726701052238,-870.3,0.0001452,2]
[338491142,1726701052250,-870.3,0.0001452,2]
[338491143,1726701052260,-870.3,0.0001452,2]
[338491144,1726701052271,-870.3,0.0001452,2]
[338491145,1726701052282,-2453.57,0.0001452,2]
[338491146,1726701052295,-500.0,0.0001452,2]
[338491147,1726701052305,-870.3,0.0001452,2]
[338491148,1726701052317,-870.3,0.0001452,2]
[338491149,1726701052332,-500.0,0.0001452,2]
[338491150,1726701052342,-870.3,0.0001452,2]
[338491151,1726701052352,-1312.92,0.0001452,2]
[338491152,1726701052365,-2185.15,0.0001452,2]
[338491153,1726701052374,-870.3,0.0001452,2]
[338491154,1726701052385,-870.3,0.0001452,2]
[338491155,1726701052396,-3027.76,0.0001452,2]
[338491156,1726701052407,-870.3,0.0001452,2]
[338491157,1726701052419,-879.03,0.0001452,2]
[338491158,1726701052429,-1591.82,0.0001452,2]
[338491159,1726701052439,-6219.32,0.0001452,2]
[338491160,1726701052449,-1218.76,0.0001452,2]
[338491161,1726701052459,-994.59,0.0001452,2]
[338491162,1726701052468,-2764.52,0.0001452,2]
[338491163,1726701052478,-2122.05,0.0001452,2]
[338491164,1726701052487,-500.0,0.0001452,2]
[338491165,1726701052497,-500.0,0.0001452,2]
[338491166,1726701052506,-500.0,0.0001452,2]
[338491167,1726701052516,-500.0,0.0001452,2]
[338491168,1726701052525,-500.0,0.0001452,2]
[338491169,1726701052535,-661.5,0.0001452,2]
[338491170,1726701052549,-500.0,0.0001452,2]
[338491171,1726701052558,-500.0,0.0001452,2]
[338491172,1726701052567,-500.0,0.0001452,2]
[338491173,1726701052577,-1200.37,0.0001452,2]
[338491174,1726701052587,-517.66,0.0001452,2]
[338491175,1726701052596,-2097.08,0.0001452,2]
[338491176,1726701052605,-500.0,0.0001452,2]
[338491177,1726701052615,-1914.39,0.0001452,2]
[338491178,1726701052625,-500.0,0.0001452,2]
[338491179,1726701052634,-583.4,0.0001452,2]
[338491180,1726701052644,-980.88,0.0001452,2]
[338491181,1726701052653,-1722.11,0.0001452,2]
[338491182,1726701052663,-931.58,0.0001452,2]
[338491183,1726701052674,-658.86,0.0001452,2]
[338491184,1726701052684,-943.16,0.0001452,2]
[338491185,1726701052693,-1497.85,0.0001452,2]
[338491186,1726701052703,-500.0,0.0001452,2]
[338491187,1726701052712,-3171.18,0.0001452,2]
[338491188,1726701052722,-667.188131,0.0001452,2]
[338491189,1726701052732,-667.188131,0.0001452,2]
[338491190,1726701052742,-500.0,0.0001452,2]